[Event "TePe Sigeman & Co Chess Tournament 2025"]
[Site "Elite Plaza Hotel, Gustav Adolfs Torg 49, Malmo, Sweden"]
[Date "2025.05.21"]
[Round "2.2"]
[White "L'Ami, Erwin"]
[Black "Ivanchuk, Vasyl"]
[Result "1/2-1/2"]
[TimeControl "90 minutes for 40 moves + 30 minutes for the rest of the game + 30 seconds per move from move one."]
[WhiteTitle "GM"]
[BlackTitle "GM"]
[WhiteFideId "1007998"]
[BlackFideId "14100010"]
[WhiteElo "2621"]
[BlackElo "2644"]

1. d4 {[%clk 01:30:49]} {[%emt 00:00:10]} Nf6 {[%clk 01:30:31]} {[%emt
00:00:29]} 2. c4 {[%clk 01:31:06]} {[%emt 00:00:13]} e6 {[%clk 01:30:56]}
{[%emt 00:00:06]} 3. Nf3 {[%clk 01:31:19]} {[%emt 00:00:16]} c5 {[%clk
01:31:21]} {[%emt 00:00:06]} 4. d5 {[%clk 01:30:29]} {[%emt 00:01:19]} d6
{[%clk 01:31:32]} {[%emt 00:00:20]} 5. Nc3 {[%clk 01:30:05]} {[%emt 00:00:53]}
exd5 {[%clk 01:28:46]} {[%emt 00:03:17]} 6. cxd5 {[%clk 01:30:26]} {[%emt
00:00:09]} g6 {[%clk 01:29:10]} {[%emt 00:00:06]} 7. Bf4 {[%clk 01:27:24]}
{[%emt 00:03:32]} Bg7 {[%clk 01:29:26]} {[%emt 00:00:14]} 8. h3 {[%clk
01:24:18]} {[%emt 00:03:36]} O-O {[%clk 01:29:32]} {[%emt 00:00:25]} 9. e3
{[%clk 01:24:39]} {[%emt 00:00:08]} Na6 {[%clk 01:13:31]} {[%emt 00:16:32]} 10.
Be2 {[%clk 01:15:58]} {[%emt 00:09:10]} Nc7 {[%clk 01:09:10]} {[%emt 00:04:51]}
11. O-O {[%clk 01:12:49]} {[%emt 00:03:39]} Re8 {[%clk 00:58:45]} {[%emt
00:10:55]} 12. a4 {[%clk 00:59:59]} {[%emt 00:13:20]} a6 {[%clk 00:54:25]}
{[%emt 00:04:51]} 13. Qb3 {[%clk 00:54:10]} {[%emt 00:06:18]} Rb8 {[%clk
00:51:14]} {[%emt 00:03:41]} 14. a5 {[%clk 00:51:28]} {[%emt 00:03:12]} Ne4
{[%clk 00:38:02]} {[%emt 00:13:42]} 15. Rfd1 {[%clk 00:45:18]} {[%emt
00:06:39]} b5 {[%clk 00:23:13]} {[%emt 00:15:19]} 16. axb6 {[%clk 00:43:04]}
{[%emt 00:02:44]} Nxc3 {[%clk 00:20:44]} {[%emt 00:02:58]} 17. bxc3 {[%clk
00:41:48]} {[%emt 00:01:46]} Nb5 {[%clk 00:21:10]} {[%emt 00:00:05]} 18. Bxb5
{[%clk 00:37:53]} {[%emt 00:04:24]} axb5 {[%clk 00:21:24]} {[%emt 00:00:17]} 19.
Qxb5 {[%clk 00:32:05]} {[%emt 00:06:39]} Rxb6 {[%clk 00:21:46]} 20. Qa5 {[%clk
00:29:53]} {[%emt 00:02:27]} Bf5 {[%clk 00:21:34]} {[%emt 00:00:43]} 21. Rac1
{[%clk 00:21:55]} {[%emt 00:08:29]} Qb8 {[%clk 00:15:30]} {[%emt 00:06:33]} 22.
Qa2 {[%clk 00:16:40]} {[%emt 00:05:45]} Qb7 {[%clk 00:07:36]} {[%emt 00:08:25]}
23. Nd2 {[%clk 00:13:03]} {[%emt 00:04:07]} Ra8 {[%clk 00:01:36]} {[%emt
00:06:30]} 24. Qc4 {[%clk 00:13:19]} {[%emt 00:00:13]} Ra3 {[%clk 00:01:20]}
{[%emt 00:00:45]} 25. Ne4 {[%clk 00:10:11]} {[%emt 00:03:38]} Qa6 {[%clk
00:00:37]} {[%emt 00:01:14]} 26. Qxa6 {[%clk 00:08:25]} {[%emt 00:02:16]} Raxa6
{[%clk 00:01:04]} {[%emt 00:00:03]} 27. Ng3 {[%clk 00:07:12]} {[%emt 00:01:42]}
Bd7 {[%clk 00:01:22]} {[%emt 00:00:13]} 28. e4 {[%clk 00:06:29]} {[%emt
00:01:13]} h5 {[%clk 00:00:46]} {[%emt 00:01:06]} 29. Nf1 {[%clk 00:05:21]}
{[%emt 00:01:38]} Ra4 {[%clk 00:00:33]} {[%emt 00:00:43]} 30. Nd2 {[%clk
00:05:01]} {[%emt 00:00:49]} f5 {[%clk 00:00:45]} {[%emt 00:00:18]} 31. c4
{[%clk 00:03:01]} {[%emt 00:02:30]} Bb2 {[%clk 00:00:35]} {[%emt 00:00:40]} 32.
Rb1 {[%clk 00:03:14]} {[%emt 00:00:17]} Rab4 {[%clk 00:01:04]} {[%emt
00:00:01]} 33. Re1 {[%clk 00:02:53]} {[%emt 00:00:51]} Bd4 {[%clk 00:00:54]}
{[%emt 00:00:40]} 34. Rxb4 {[%clk 00:02:38]} {[%emt 00:00:46]} cxb4 {[%clk
00:01:14]} {[%emt 00:00:10]} 35. e5 {[%clk 00:02:13]} {[%emt 00:00:54]} dxe5
{[%clk 00:00:49]} {[%emt 00:00:56]} 36. Bxe5 {[%clk 00:02:34]} {[%emt
00:00:08]} Bc3 {[%clk 00:01:16]} {[%emt 00:00:02]} 37. c5 {[%clk 00:02:26]}
{[%emt 00:00:38]} Rb5 {[%clk 00:01:14]} {[%emt 00:00:32]} 38. c6 {[%clk
00:01:10]} {[%emt 00:01:47]} Rxd5 {[%clk 00:01:14]} {[%emt 00:00:31]} 39. cxd7
{[%clk 00:01:20]} {[%emt 00:00:19]} Bxd2 {[%clk 00:01:41]} {[%emt 00:00:03]} 40.
Bd6 {[%clk 00:00:55]} {[%emt 00:00:54]} Rxd6 {[%clk 00:00:43]} {[%emt
00:01:28]} 41. Re8+ {[%clk 00:00:58]} {[%emt 00:00:26]} Kf7 {[%clk 00:30:26]}
{[%emt 00:00:47]} 42. d8=Q {[%clk 00:29:51]} {[%emt 00:01:37]} Rxd8 {[%clk
00:30:55]} {[%emt 00:00:02]} 43. Rxd8 {[%clk 00:30:11]} {[%emt 00:00:09]} Bc3
{[%clk 00:31:15]} {[%emt 00:00:11]} 44. Rb8 {[%clk 00:26:55]} {[%emt 00:03:46]}
h4 {[%clk 00:19:55]} {[%emt 00:11:50]} 45. Kf1 {[%clk 00:24:57]} {[%emt
00:02:28]} Kf6 {[%clk 00:20:23]} {[%emt 00:00:02]} 46. Ke2 {[%clk 00:24:32]}
{[%emt 00:00:54]} Kg5 {[%clk 00:20:48]} {[%emt 00:00:06]} 47. Rb6 {[%clk
00:22:56]} {[%emt 00:02:07]} Kh6 {[%clk 00:20:45]} {[%emt 00:00:31]} 48. Kd3
{[%clk 00:21:20]} {[%emt 00:02:07]} Be1 {[%clk 00:18:41]} {[%emt 00:02:34]} 49.
Ke3 {[%clk 00:16:51]} {[%emt 00:04:59]} Bc3 {[%clk 00:16:14]} {[%emt 00:02:57]}
50. Rb7 {[%clk 00:14:13]} {[%emt 00:03:08]} Kg5 {[%clk 00:16:22]} {[%emt
00:00:22]} 51. f4+ {[%clk 00:13:40]} {[%emt 00:01:02]} Kf6 {[%clk 00:15:49]}
{[%emt 00:01:03]} 52. Kd3 {[%clk 00:13:44]} {[%emt 00:00:26]} Ke6 {[%clk
00:09:21]} {[%emt 00:06:57]} 53. Rb6+ {[%clk 00:12:39]} {[%emt 00:01:37]} Kf7
{[%clk 00:09:42]} {[%emt 00:00:09]} 54. Rd6 {[%clk 00:12:26]} {[%emt 00:00:43]}
Bb2 {[%clk 00:04:45]} {[%emt 00:05:26]} 55. Kc2 {[%clk 00:12:03]} {[%emt
00:00:54]} Bc3 {[%clk 00:04:13]} {[%emt 00:01:03]} 56. Kb3 {[%clk 00:11:35]}
{[%emt 00:00:58]} Kg7 {[%clk 00:03:34]} {[%emt 00:01:09]} 57. Kc4 {[%clk
00:11:33]} {[%emt 00:00:32]} Kf7 {[%clk 00:03:59]} {[%emt 00:00:04]} 58. Rd3
{[%clk 00:10:59]} {[%emt 00:01:04]} Be1 {[%clk 00:03:10]} {[%emt 00:01:19]} 59.
Rd7+ {[%clk 00:10:09]} {[%emt 00:01:19]} Ke6 {[%clk 00:02:28]} {[%emt
00:01:07]} 60. Rd1 {[%clk 00:10:21]} {[%emt 00:00:23]} Bc3 {[%clk 00:02:45]}
{[%emt 00:00:13]} 61. Kc5 {[%clk 00:10:33]} {[%emt 00:00:19]} Ke7 {[%clk
00:02:20]} {[%emt 00:00:55]} 62. Rd3 {[%clk 00:10:51]} {[%emt 00:00:11]} Ke6
{[%clk 00:02:26]} {[%emt 00:00:24]} 63. Re3+ {[%clk 00:10:03]} {[%emt
00:01:19]} Kf7 {[%clk 00:02:33]} {[%emt 00:00:23]} 64. Rd3 {[%clk 00:09:28]}
{[%emt 00:01:05]} Ke6 {[%clk 00:02:58]} {[%emt 00:00:05]} 65. Kc4 {[%clk
00:08:27]} {[%emt 00:01:31]} Kf6 {[%clk 00:02:59]} {[%emt 00:00:29]} 66. Rd6+
{[%clk 00:08:24]} {[%emt 00:00:33]} Kf7 {[%clk 00:03:26]} {[%emt 00:00:02]} 67.
Kb3 {[%clk 00:07:11]} {[%emt 00:01:44]} Kg7 {[%clk 00:03:26]} {[%emt 00:00:30]}
68. Kc2 {[%clk 00:06:10]} {[%emt 00:01:32]} Kf7 {[%clk 00:03:28]} {[%emt
00:00:29]} 69. Rb6 {[%clk 00:06:06]} {[%emt 00:00:34]} Kg7 {[%clk 00:03:21]}
{[%emt 00:00:35]} 70. Rb7+ {[%clk 00:05:53]} {[%emt 00:00:46]} Kf6 {[%clk
00:03:37]} {[%emt 00:00:12]} 71. Kd1 {[%clk 00:05:38]} {[%emt 00:00:45]} Ke6
{[%clk 00:03:19]} {[%emt 00:00:48]} 72. Rh7 {[%clk 00:05:42]} {[%emt 00:00:25]}
Kf6 {[%clk 00:01:32]} {[%emt 00:02:17]} 73. Kc2 {[%clk 00:03:40]} {[%emt
00:02:33]} Be1 {[%clk 00:01:34]} {[%emt 00:00:28]} 74. Kd3 {[%clk 00:03:52]}
{[%emt 00:00:18]} Bc3 {[%clk 00:00:51]} {[%emt 00:01:12]} 75. Rc7 {[%clk
00:02:53]} {[%emt 00:01:31]} Ke6 {[%clk 00:00:54]} {[%emt 00:00:26]} 76. Rb7
{[%clk 00:03:11]} {[%emt 00:00:13]} Kf6 {[%clk 00:01:00]} {[%emt 00:00:25]} 77.
Rh7 {[%clk 00:02:49]} {[%emt 00:00:52]} Be1 {[%clk 00:01:03]} {[%emt 00:00:27]}
78. Rh8 {[%clk 00:01:06]} {[%emt 00:02:12]} Kf7 {[%clk 00:00:44]} {[%emt
00:00:48]} 79. Rb8 {[%clk 00:01:00]} {[%emt 00:00:38]} Bc3 {[%clk 00:00:46]}
{[%emt 00:00:27]} 80. Rd8 {[%clk 00:00:53]} {[%emt 00:00:38]} Ke7 {[%clk
00:00:50]} {[%emt 00:00:25]} 81. Rd5 {[%clk 00:01:11]} {[%emt 00:00:13]} Kf7
{[%clk 00:00:52]} {[%emt 00:00:27]} 82. Rd6 {[%clk 00:01:02]} {[%emt 00:00:40]}
Be1 {[%clk 00:00:59]} {[%emt 00:00:22]} 83. Kc4 {[%clk 00:01:09]} {[%emt
00:00:24]} Bc3 {[%clk 00:01:11]} {[%emt 00:00:17]} 84. Rd7+ {[%clk 00:00:59]}
{[%emt 00:00:40]} Ke6 {[%clk 00:01:25]} {[%emt 00:00:16]} 85. Rd1 {[%clk
00:00:37]} {[%emt 00:00:52]} Ke7 {[%clk 00:01:31]} {[%emt 00:00:24]} 86. Kd5
{[%clk 00:00:54]} {[%emt 00:00:13]} Kf7 {[%clk 00:01:48]} {[%emt 00:00:13]} 87.
Rd3 {[%clk 00:01:14]} {[%emt 00:00:10]} Ke7 {[%clk 00:01:53]} {[%emt 00:00:25]}
88. Kc5 {[%clk 00:01:10]} {[%emt 00:00:34]} Ke6 {[%clk 00:02:01]} {[%emt
00:00:21]} 89. Kc6 {[%clk 00:01:07]} {[%emt 00:00:34]} Ke7 {[%clk 00:02:29]}
{[%emt 00:00:01]} 90. Kc7 {[%clk 00:00:58]} {[%emt 00:00:39]} Bb2 {[%clk
00:02:28]} {[%emt 00:00:28]} 91. Rd7 {[%clk 00:00:58]} {[%emt 00:00:33]} Ke6
{[%clk 00:02:45]} {[%emt 00:00:12]} 92. Rd6+ {[%clk 00:01:26]} {[%emt
00:00:03]} Kf7 {[%clk 00:03:07]} {[%emt 00:00:08]} 93. Rc6 {[%clk 00:00:40]}
{[%emt 00:01:16]} Bc3 {[%clk 00:01:44]} {[%emt 00:01:53]} 94. Kd6 {[%clk
00:00:44]} {[%emt 00:00:26]} Bd2 {[%clk 00:01:59]} {[%emt 00:00:12]} 95. Ke5
{[%clk 00:01:01]} {[%emt 00:00:15]} Bc3+ {[%clk 00:02:18]} {[%emt 00:00:11]} 96.
Kd5 {[%clk 00:01:23]} {[%emt 00:00:08]} Bd2 {[%clk 00:02:43]} {[%emt 00:00:05]}
97. Rc4 {[%clk 00:01:07]} {[%emt 00:00:47]} Kf6 {[%clk 00:02:35]} {[%emt
00:00:38]} 98. Rd4 {[%clk 00:01:06]} {[%emt 00:00:31]} Bc3 {[%clk 00:03:04]}
{[%emt 00:00:02]} 99. Rd3 {[%clk 00:01:20]} {[%emt 00:00:16]} Bb2 {[%clk
00:03:17]} {[%emt 00:00:15]} 100. Rd1 {[%clk 00:01:00]} {[%emt 00:00:52]}
1/2-1/2

[Event "TePe Sigeman & Co Chess Tournament 2025"]
[Site "Elite Plaza Hotel, Gustav Adolfs Torg 49, Malmo, Sweden"]
[Date "2025.05.21"]
[Round "2.3"]
[White "Grandelius, Nils"]
[Black "Rapport, Richard"]
[Result "1/2-1/2"]
[TimeControl "90 minutes for 40 moves + 30 minutes for the rest of the game + 30 seconds per move from move one."]
[WhiteTitle "GM"]
[BlackTitle "GM"]
[WhiteFideId "1710400"]
[BlackFideId "738590"]
[WhiteElo "2637"]
[BlackElo "2722"]

1. e4 {[%clk 01:30:56]} {[%emt 18:08:00]} c5 {[%clk 01:30:12]} {[%emt
00:01:25]} 2. Nf3 {[%clk 01:31:11]} {[%emt 00:00:15]} Nc6 {[%clk 01:30:05]}
{[%emt 00:00:38]} 3. d4 {[%clk 01:31:00]} {[%emt 00:00:41]} cxd4 {[%clk
01:30:25]} {[%emt 00:00:09]} 4. Nxd4 {[%clk 01:31:25]} {[%emt 00:00:05]} Nf6
{[%clk 01:30:18]} {[%emt 00:00:37]} 5. Nc3 {[%clk 01:31:44]} {[%emt 00:00:11]}
e5 {[%clk 01:30:44]} {[%emt 00:00:04]} 6. Ndb5 {[%emt 00:01:32]} d6 7. Nd5
{[%clk 01:31:11]} {[%emt 00:00:10]} Nxd5 {[%clk 01:31:26]} {[%emt 00:00:09]} 8.
exd5 {[%clk 01:31:36]} {[%emt 00:00:05]} Ne7 {[%clk 01:30:28]} {[%emt
00:01:27]} 9. a4 {[%clk 01:30:58]} {[%emt 00:01:07]} a6 {[%clk 01:24:21]}
{[%emt 00:06:38]} 10. Nc3 {[%clk 01:31:01]} {[%emt 00:00:26]} Ng6 {[%clk
01:24:45]} {[%emt 00:00:07]} 11. g3 {[%clk 01:30:39]} {[%emt 00:00:52]} Be7
{[%clk 01:22:44]} {[%emt 00:02:31]} 12. h4 {[%clk 01:29:02]} {[%emt 00:02:06]}
O-O {[%clk 01:20:25]} {[%emt 00:02:50]} 13. h5 {[%clk 01:28:43]} {[%emt
00:00:50]} Nh8 {[%clk 01:20:51]} {[%emt 00:00:03]} 14. h6 {[%clk 01:28:47]}
{[%emt 00:00:26]} g6 {[%clk 01:21:15]} {[%emt 00:00:07]} 15. Be3 {[%clk
01:27:45]} {[%emt 00:01:31]} f5 {[%clk 01:10:55]} {[%emt 00:10:50]} 16. a5
{[%clk 01:25:51]} {[%emt 00:02:25]} Bd7 {[%clk 01:08:59]} {[%emt 00:02:26]} 17.
Qd2 {[%clk 01:22:42]} {[%emt 00:03:38]} Nf7 {[%clk 00:59:18]} {[%emt 00:10:11]}
18. f4 {[%clk 01:12:03]} {[%emt 00:11:09]} Qe8 {[%clk 00:50:59]} {[%emt
00:08:49]} 19. Kd1 {[%clk 01:01:38]} {[%emt 00:10:55]} Bd8 {[%clk 00:49:35]}
{[%emt 00:01:54]} 20. Qf2 {[%clk 00:49:01]} {[%emt 00:13:06]} Bc7 {[%clk
00:41:49]} {[%emt 00:08:18]} 21. Bb6 {[%clk 00:45:15]} {[%emt 00:04:15]} Bxb6
{[%clk 00:39:50]} {[%emt 00:02:30]} 22. Qxb6 {[%clk 00:44:07]} {[%emt
00:01:38]} Qe7 {[%clk 00:37:26]} {[%emt 00:02:54]} 23. Kd2 {[%clk 00:27:39]}
{[%emt 00:16:58]} Rae8 {[%clk 00:36:26]} {[%emt 00:01:30]} 24. Re1 {[%clk
00:25:32]} {[%emt 00:02:37]} Bc8 {[%clk 00:35:54]} {[%emt 00:01:02]} 25. Bc4
{[%clk 00:21:40]} {[%emt 00:04:22]} Qf6 {[%clk 00:35:28]} {[%emt 00:00:57]} 26.
Qf2 {[%clk 00:17:36]} {[%emt 00:04:33]} Bd7 {[%clk 00:25:14]} {[%emt 00:10:44]}
27. Qb6 {[%clk 00:16:41]} {[%emt 00:01:25]} Re7 {[%clk 00:23:42]} {[%emt
00:02:03]} 28. Kc1 {[%clk 00:14:25]} {[%emt 00:02:46]} Rfe8 {[%clk 00:17:59]}
{[%emt 00:06:13]} 29. Kb1 {[%clk 00:13:45]} {[%emt 00:01:09]} exf4 {[%clk
00:16:39]} {[%emt 00:01:50]} 30. Rxe7 {[%clk 00:13:58]} {[%emt 00:00:17]} Qxe7
{[%clk 00:12:25]} {[%emt 00:04:44]} 31. gxf4 {[%clk 00:13:59]} {[%emt
00:00:29]} Bc8 {[%clk 00:12:30]} {[%emt 00:00:25]} 32. Qd4 {[%clk 00:12:43]}
{[%emt 00:01:46]} Qf8 {[%clk 00:12:59]} {[%emt 00:00:02]} 33. Qf6 {[%clk
00:11:01]} {[%emt 00:02:11]} Nd8 {[%clk 00:13:27]} {[%emt 00:00:03]} 34. Qd4
{[%clk 00:10:53]} {[%emt 00:00:38]} Nf7 {[%clk 00:13:55]} {[%emt 00:00:02]} 35.
Qf6 {[%clk 00:07:53]} {[%emt 00:03:31]} Nd8 {[%clk 00:14:23]} {[%emt 00:00:02]}
36. Qd4 {[%clk 00:04:23]} {[%emt 00:04:00]} 1/2-1/2

[Event "TePe Sigeman & Co Chess Tournament 2025"]
[Site "Elite Plaza Hotel, Gustav Adolfs Torg 49, Malmo, Sweden"]
[Date "2025.05.21"]
[Round "2.4"]
[White "Tan, Zhongyi"]
[Black "Erdogmus, Yagiz Kaan"]
[Result "0-1"]
[TimeControl "90 minutes for 40 moves + 30 minutes for the rest of the game + 30 seconds per move from move one."]
[WhiteTitle "GM"]
[BlackTitle "GM"]
[WhiteFideId "8603642"]
[BlackFideId "44599790"]
[WhiteElo "2536"]
[BlackElo "2618"]

1. d4 {[%clk 01:30:57]} {[%emt 00:00:03]} d5 {[%clk 01:30:38]} {[%emt
00:00:23]} 2. c4 {[%clk 01:31:20]} {[%emt 00:00:07]} dxc4 {[%clk 01:31:04]}
{[%emt 00:00:04]} 3. Nf3 {[%clk 01:31:39]} {[%emt 00:00:10]} c5 {[%clk
01:31:29]} {[%emt 00:00:05]} 4. e3 {[%clk 01:31:31]} {[%emt 00:00:37]} cxd4
{[%clk 01:31:52]} {[%emt 00:00:07]} 5. Bxc4 {[%clk 01:31:38]} {[%emt 00:00:23]}
Qc7 {[%clk 01:32:17]} {[%emt 00:00:06]} 6. Bb3 {[%clk 01:31:32]} {[%emt
00:00:36]} dxe3 {[%clk 01:32:40]} {[%emt 00:00:07]} 7. Bxe3 {[%clk 01:31:57]}
{[%emt 00:00:05]} Nf6 {[%clk 01:32:56]} {[%emt 00:00:14]} 8. Nc3 {[%clk
01:32:01]} {[%emt 00:00:25]} e6 {[%clk 01:33:13]} {[%emt 00:00:15]} 9. O-O
{[%clk 01:32:14]} {[%emt 00:00:16]} Nc6 {[%clk 01:33:25]} {[%emt 00:00:18]} 10.
Rc1 {[%clk 01:31:48]} {[%emt 00:00:55]} Be7 {[%clk 01:32:55]} {[%emt 00:01:01]}
11. Nb5 {[%clk 01:17:24]} {[%emt 00:14:54]} Qb8 {[%clk 01:33:19]} {[%emt
00:00:06]} 12. Qd2 {[%clk 01:11:49]} {[%emt 00:06:04]} Bb4 {[%clk 01:31:59]}
{[%emt 00:01:50]} 13. Qe2 {[%clk 01:07:37]} {[%emt 00:04:42]} O-O {[%clk
01:20:37]} {[%emt 00:11:53]} 14. Rfd1 {[%clk 01:06:24]} {[%emt 00:01:42]} a6
{[%clk 00:56:04]} {[%emt 00:25:03]} 15. Nbd4 {[%clk 01:02:32]} {[%emt
00:04:21]} Ne7 {[%clk 00:41:06]} {[%emt 00:15:28]} 16. Bg5 {[%clk 00:40:58]}
{[%emt 00:22:04]} Ng6 {[%clk 00:39:37]} {[%emt 00:02:00]} 17. Bxf6 {[%clk
00:39:58]} {[%emt 00:01:30]} gxf6 {[%clk 00:39:54]} {[%emt 00:00:13]} 18. Nc2
{[%clk 00:39:42]} {[%emt 00:00:45]} Be7 {[%clk 00:33:41]} {[%emt 00:06:43]} 19.
Ne3 {[%clk 00:40:05]} {[%emt 00:00:07]} b5 {[%clk 00:30:59]} {[%emt 00:03:13]}
20. Nd4 {[%clk 00:31:45]} {[%emt 00:08:49]} Bb7 {[%clk 00:20:49]} {[%emt
00:10:40]} 21. Nc6 {[%clk 00:31:38]} {[%emt 00:00:37]} Bxc6 {[%clk 00:19:07]}
{[%emt 00:02:12]} 22. Rxc6 {[%clk 00:32:02]} {[%emt 00:00:06]} Qe5 {[%clk
00:18:32]} {[%emt 00:01:05]} 23. g3 {[%clk 00:22:42]} {[%emt 00:09:50]} Bc5
{[%clk 00:15:50]} {[%emt 00:03:12]} 24. Rd5 {[%clk 00:19:09]} {[%emt 00:04:02]}
exd5 {[%clk 00:16:15]} {[%emt 00:00:06]} 25. Rxc5 {[%clk 00:19:35]} {[%emt
00:00:04]} Rac8 {[%clk 00:12:48]} {[%emt 00:03:57]} 26. Rxd5 {[%clk 00:19:57]}
{[%emt 00:00:08]} Rc1+ {[%clk 00:13:02]} {[%emt 00:00:16]} 27. Kg2 {[%clk
00:20:12]} {[%emt 00:00:13]} Qe4+ {[%clk 00:13:11]} {[%emt 00:00:24]} 28. Kh3
{[%clk 00:20:30]} {[%emt 00:00:12]} Ne5 {[%clk 00:08:14]} {[%emt 00:05:27]} 29.
Qh5 {[%clk 00:17:29]} {[%emt 00:03:30]} Qg6 {[%clk 00:06:45]} {[%emt 00:02:01]}
30. Qf5 {[%clk 00:17:05]} {[%emt 00:00:53]} Rg1 {[%clk 00:06:07]} {[%emt
00:01:09]} 31. Rd4 {[%clk 00:16:31]} {[%emt 00:01:03]} Kh8 {[%clk 00:04:08]}
{[%emt 00:02:30]} 32. Bc2 {[%clk 00:09:08]} {[%emt 00:07:52]} Rg8 {[%clk
00:02:09]} {[%emt 00:02:29]} 33. Rh4 {[%clk 00:07:26]} {[%emt 00:02:12]} Qxf5+
{[%clk 00:02:23]} {[%emt 00:00:17]} 34. Bxf5 {[%clk 00:07:50]} {[%emt
00:00:05]} Rg7 {[%clk 00:02:22]} {[%emt 00:00:32]} 35. Be4 {[%clk 00:06:50]}
{[%emt 00:01:29]} Re1 {[%clk 00:02:12]} {[%emt 00:00:41]} 36. Rf4 {[%clk
00:06:04]} {[%emt 00:01:15]} h5 {[%clk 00:01:45]} {[%emt 00:00:58]} 37. Rh4
{[%clk 00:02:52]} {[%emt 00:03:42]} Kg8 {[%clk 00:00:38]} {[%emt 00:01:37]} 38.
Rxh5 {[%clk 00:03:05]} {[%emt 00:00:17]} Re2 {[%clk 00:00:37]} {[%emt
00:00:32]} 39. Nd5 {[%clk 00:01:34]} {[%emt 00:02:00]} Rxf2 {[%clk 00:00:41]}
{[%emt 00:00:26]} 40. Bf5 {[%clk 00:00:35]} {[%emt 00:01:29]} Nf3 {[%clk
00:00:34]} {[%emt 00:00:37]} 41. Nxf6+ {[%clk 00:01:01]} {[%emt 00:00:04]} Kf8
{[%clk 00:01:03]} 42. g4 {[%clk 00:00:32]} {[%emt 00:01:00]} Rxb2 {[%clk
00:25:42]} {[%emt 00:05:49]} 43. Rh8+ {[%clk 00:23:41]} {[%emt 00:07:21]} Ke7
{[%clk 00:26:04]} {[%emt 00:00:09]} 44. Nh5 {[%clk 00:23:59]} {[%emt 00:00:11]}
Rg5 {[%clk 00:21:23]} {[%emt 00:05:11]} 45. Kg3 {[%clk 00:22:53]} {[%emt
00:01:36]} Nxh2 {[%clk 00:16:54]} {[%emt 00:05:00]} 46. Kf4 {[%clk 00:09:01]}
{[%emt 00:14:22]} Rxg4+ {[%clk 00:16:59]} {[%emt 00:00:24]} 47. Bxg4 {[%clk
00:09:27]} {[%emt 00:00:05]} Rb4+ {[%clk 00:17:27]} {[%emt 00:00:02]} 48. Kg3
{[%clk 00:07:17]} {[%emt 00:02:40]} Nxg4 {[%clk 00:17:52]} {[%emt 00:00:05]} 49.
Ng7 {[%clk 00:07:31]} {[%emt 00:00:16]} Nf6 {[%clk 00:16:49]} {[%emt 00:01:33]}
50. Kf3 {[%clk 00:07:45]} {[%emt 00:00:15]} Ra4 {[%clk 00:16:24]} {[%emt
00:00:56]} 51. Rh2 {[%clk 00:07:03]} {[%emt 00:01:11]} Ng4 {[%clk 00:12:26]}
{[%emt 00:04:29]} 52. Re2+ {[%clk 00:06:59]} {[%emt 00:00:34]} Kf6 {[%clk
00:12:39]} {[%emt 00:00:17]} 53. Ne8+ {[%clk 00:07:18]} {[%emt 00:00:10]} Kg5
{[%clk 00:13:04]} {[%emt 00:00:06]} 54. Nc7 {[%clk 00:04:58]} {[%emt 00:02:50]}
Ra3+ {[%clk 00:11:30]} {[%emt 00:02:05]} 55. Ke4 {[%clk 00:04:39]} {[%emt
00:00:47]} f5+ {[%clk 00:07:12]} {[%emt 00:04:49]} 56. Kd5 {[%clk 00:04:59]}
{[%emt 00:00:10]} Kh4 {[%clk 00:04:18]} {[%emt 00:03:23]} 57. Ne6 {[%clk
00:04:11]} {[%emt 00:01:18]} Kg3 {[%clk 00:03:45]} {[%emt 00:01:04]} 58. Nd4
{[%clk 00:02:24]} {[%emt 00:02:17]} f4 {[%clk 00:03:58]} {[%emt 00:00:17]} 59.
Nf5+ {[%clk 00:02:40]} {[%emt 00:00:14]} Kh3 {[%clk 00:04:21]} {[%emt
00:00:07]} 60. Re7 {[%clk 00:02:27]} {[%emt 00:00:42]} Ne3+ {[%clk 00:04:37]}
{[%emt 00:00:14]} 61. Nxe3 {[%clk 00:02:09]} {[%emt 00:00:48]} Rxe3 {[%clk
00:04:56]} {[%emt 00:00:12]} 62. Ra7 {[%clk 00:02:29]} {[%emt 00:00:11]} f3
{[%clk 00:04:20]} {[%emt 00:01:06]} 63. Kd4 {[%clk 00:02:24]} {[%emt 00:00:35]}
Ra3 {[%clk 00:04:36]} {[%emt 00:00:14]} 0-1